bitfinex/quotes_SOLUSD_20240726
["timestamp","ask_amount","ask_price","bid_price","bid_amount"]
[1722003936941,20.0,181.27,181.11,0.2788029]
[1722003937119,36.22,181.25,181.11,0.2788029]
[1722003937323,20.0,181.24,181.11,0.2788029]
[1722003937836,5.5131,181.39,181.2,5.5186]
[1722003938051,36.22,181.37,181.15,13.8004]
[1722003938340,36.22,181.37,181.19,13.7974]
[1722003938537,36.22,181.37,181.19,19.3162]
[1722003938842,36.22,181.37,181.21,5.5183]
[1722003939012,36.22,181.37,181.19,19.3162]
[1722003939219,36.22,181.37,181.19,13.7974]
[1722003939441,36.22,181.37,181.14,13.8011]
[1722003939760,8.52904275,181.43,181.18,13.7981]
[1722003939918,5.5129,181.4,181.21,5.5182]
[1722003940122,5.5144,181.35,181.17,13.7986]
[1722003940318,15.9784,181.36,181.17,13.7986]
[1722003940656,15.9784,181.36,181.21,13.7954]
[1722003940824,15.9784,181.36,181.16,13.7993]
[1722003941013,21.4924,181.36,181.18,5.5192]
[1722003941214,15.9784,181.36,181.2,13.7967]
[1722003941447,15.9784,181.36,181.2,19.3153]
[1722003941620,15.9784,181.36,181.21,5.5183]
[1722003942149,15.9784,181.36,181.2,13.7967]
[1722003942350,20.0,181.35,181.15,13.8002]
[1722003942524,20.0,181.35,181.16,5.5197]
[1722003942725,20.0,181.35,181.19,13.7971]
[1722003942941,20.0,181.35,181.11,0.2788029]
[1722003943150,15.9784,181.36,181.23,5.5177]
[1722003943334,15.9784,181.36,181.22,13.7951]
[1722003943651,15.9784,181.36,181.26,13.7921]
[1722003943826,5.5118,181.43,181.26,13.7921]
[1722003944029,22.111849,181.4,181.21,13.7955]
[1722003944433,22.111849,181.4,181.22,5.518]
[1722003944923,5.513,181.39,181.21,13.7955]
[1722003945145,20.0,181.38,181.21,13.7955]
[1722003945345,20.0,181.39,181.21,13.7955]
[1722003945961,22.111849,181.4,181.23,5.5176]
[1722003946257,22.111849,181.4,181.23,5.5177]
[1722003946425,27.624549,181.4,181.21,19.3138]
[1722003946753,22.111849,181.4,181.21,19.3138]
[1722003946928,22.111849,181.4,181.23,5.5176]
[1722003947127,22.111849,181.4,181.21,19.3137]
[1722003947448,5.5133,181.38,181.21,13.7955]
[1722003947752,5.5144,181.35,181.18,6.3755]
[1722003947924,25.5145,181.34,181.18,6.3755]
[1722003948124,20.0,181.34,181.18,6.3755]
[1722003948321,20.0,181.34,181.19,5.5189]
[1722003948627,20.0,181.35,181.18,6.3755]
[1722003948848,20.0,181.35,181.18,11.8947]
[1722003949033,25.5142,181.35,181.18,6.3755]
[1722003949542,5.5152,181.32,181.18,6.3755]
[1722003949851,20.0,181.31,181.18,6.3755]
[1722003950024,20.0,181.31,181.2,5.5186]
[1722003950224,20.0,181.31,181.18,6.3755]
[1722003950425,22.111849,181.4,181.2,13.7968]
[1722003950625,22.111849,181.4,181.18,6.3755]
[1722003950923,5.5144,181.35,181.18,20.1734]
[1722003951124,22.111849,181.4,181.18,20.1734]
[1722003951555,22.111849,181.4,181.18,36.7034]
[1722003952359,20.0,181.39,181.18,36.7034]
[1722003952542,5.5142,181.35,181.18,36.7034]
[1722003952739,20.0,181.34,181.18,42.2227]
[1722003953246,20.0,181.34,181.18,36.7034]
[1722003953447,25.5145,181.34,181.18,20.1734]
[1722003953642,20.0,181.34,181.18,6.3755]
[1722003953964,5.5154,181.31,181.18,6.3755]
[1722003954465,5.5154,181.31,181.14,19.3219]
[1722003954466,20.0,181.3,181.14,13.8014]
[1722003954673,20.0,181.3,181.16,5.5198]
[1722003955038,20.0,181.32,181.14,13.8014]
[1722003955241,20.0,181.33,181.14,13.8014]
[1722003955558,5.5161,181.29,181.12,22.051]
[1722003955740,20.0,181.28,181.13,16.53]
[1722003955938,470.36089605,181.28,181.13,16.53]
[1722003956559,5.5168,181.27,181.11,0.2788029]
[1722003956875,25.5169,181.26,181.11,0.2788029]
[1722003957154,5.5176,181.24,181.11,0.2788029]
[1722003957366,5.5186,181.21,181.11,0.2788029]
[1722003957549,20.0,181.2,181.11,0.2788029]
[1722003958156,20.0,181.21,181.11,0.2788029]
[1722003959339,25.5185,181.21,181.11,0.2788029]
[1722003959547,20.0,181.21,181.11,0.2788029]
[1722003960548,450.51967199,181.22,181.12,5.5209]
[1722003960750,450.51967199,181.22,181.11,0.2788029]
[1722003961063,5.5184,181.21,181.11,0.2788029]
[1722003961745,5.524,181.19,181.11,0.2788029]
[1722003961932,5.524,181.17,181.11,0.2788029]
[1722003962136,5.524,181.15,181.11,0.2788029]
[1722003962370,5.524,181.13,181.11,0.2788029]
[1722003963436,25.524,181.12,181.11,0.2788029]
[1722003963944,5.524,181.12,181.11,0.2788029]
[1722003964343,5.524,181.16,181.11,0.2788029]
[1722003964765,5.524,181.14,181.11,0.2788029]
[1722003965058,11.0446,181.14,181.11,0.2788029]
[1722003965263,5.524,181.14,181.11,0.2788029]
[1722003965463,5.5219,181.1,180.99,21.9347]
[1722003965639,36.22,181.15,180.99,21.9347]
[1722003965640,5.524,181.09,180.99,21.9347]
[1722003966061,5.524,181.09,181.0,13.812]
[1722003966441,5.524,181.09,180.99,21.9347]
[1722003966650,5.524,181.13,180.99,21.9347]
[1722003967369,5.524,181.13,180.99,27.4597]
[1722003967552,5.524,181.13,180.99,21.9347]
[1722003967754,5.524,181.11,180.99,15.5358]
[1722003967951,11.0457,181.11,180.99,15.5358]
[1722003968149,5.524,181.09,180.99,15.5358]
[1722003968469,5.524,181.07,180.92,6.6002]
[1722003968855,5.524,181.07,180.92,12.1274]
[1722003969056,5.524,181.07,180.92,6.6002]
[1722003969346,5.524,181.05,180.9,15.1911]
[1722003969549,5.524,181.02,180.85,1.0899865]
[1722003969756,5.5253,180.99,180.85,1.0899865]
[1722003969938,20.0,180.98,180.85,1.0899865]
[1722003970358,5.524,181.01,180.85,14.9130865]
[1722003970566,5.524,181.02,180.86,5.5289]
[1722003970744,5.524,181.0,180.85,1.0899865]
[1722003970944,5.524,181.0,180.87,5.5288]
[1722003971153,5.524,180.98,180.85,1.0899865]
[1722003971563,5.524,180.98,180.85,0.0899865]
[1722003971845,13.82747497,180.98,180.85,0.0899865]
[1722003972246,13.82747497,180.91,180.85,0.0899865]
[1722003972455,5.524,180.91,180.85,0.0899865]
[1722003973169,5.524,180.98,180.85,0.0899865]
[1722003973358,5.524,180.96,180.85,0.0899865]
[1722003973548,21.47859879,180.96,180.85,0.0899865]
[1722003973749,5.524,180.94,180.85,0.0899865]
[1722003974070,21.47764381,180.94,180.85,0.0899865]
[1722003974271,5.524,180.94,180.85,0.0899865]
[1722003974478,5.524,180.93,180.85,0.0899865]
[1722003975349,5.524,180.94,180.85,0.0899865]
[1722003976371,21.47764381,180.94,180.85,0.0899865]
[1722003976558,15.95364381,180.93,180.85,0.0899865]
[1722003976761,5.524,180.92,180.85,0.0899865]
[1722003977762,5.524,180.91,180.85,0.0899865]
[1722003978058,5.524,180.89,180.69,5.534]
[1722003978367,8.3141268,180.71,180.69,13.8356]
[1722003978671,15.95481641,180.87,180.75,5.5323]
[1722003978854,5.524,180.89,180.74,13.8319]
[1722003979047,5.524,180.92,180.74,13.8319]
[1722003979255,27.698,180.87,180.74,13.8319]
[1722003979462,21.47881641,180.86,180.77,13.8294]
[1722003979770,5.524,180.86,180.8,13.827]
[1722003980152,5.524,180.86,180.76,13.83]
[1722003980357,5.524,180.86,180.8,5.5309]
[1722003980553,5.524,180.85,180.83,5.5299]
[1722003980770,5.524,180.91,180.82,19.3558]
[1722003980980,5.524,180.91,180.8,5.5307]
[1722003981293,5.524,180.91,180.68,27.6727]
[1722003981294,5.524,180.91,180.76,36.22]
[1722003981497,5.524,180.91,180.83,13.8247]
[1722003981650,5.524,180.91,180.83,19.3545]
[1722003981848,5.524,180.99,180.85,5.5293]
[1722003982051,15.49757439,180.99,180.86,13.8226]
[1722003982278,5.524,180.99,180.86,13.8226]
[1722003982779,21.48188962,180.99,180.82,5.53]
[1722003982954,11.0509,180.94,180.81,21.9239]
[1722003983154,5.524,180.94,180.81,21.9239]
[1722003983354,5.524,180.94,180.85,5.5294]
[1722003983578,5.524,180.94,180.87,30.4518]
[1722003983787,5.524,181.02,180.85,36.22]
[1722003984077,11.0482,181.03,180.86,13.8224]
[1722003984282,5.524,181.03,180.85,36.22]
[1722003984473,5.524,181.01,180.9,5.5277]
[1722003984655,5.524,181.01,180.88,19.3494]
[1722003984858,5.524,181.01,180.85,36.22]
[1722003985257,5.524,181.0,180.85,5.5294]
[1722003985498,5.524,181.0,180.86,5.5291]
[1722003985685,5.524,181.0,180.88,16.63]
[1722003986187,5.5251,180.99,180.85,36.22]
[1722003986367,5.524,181.0,180.85,36.22]
[1722003986561,5.524,181.0,180.88,5.5284]
[1722003986870,5.524,181.0,180.89,13.8204]
[1722003987457,5.524,181.03,180.9,23.26300155]
[1722003987658,5.524,181.03,180.9,17.73510155]
[1722003987955,5.524,181.03,180.91,5.5275]
[1722003988155,5.524,181.03,180.92,20.4502177]
[1722003988385,5.524,181.03,180.94,5.5265]
[1722003988764,5.524,181.03,180.95,1.10485192]
[1722003988957,5.524,181.03,180.93,1.10485192]
[1722003989279,5.524,181.03,180.96,5.526]
[1722003989480,15.29358063,181.04,180.96,1.1047261]
[1722003989694,15.29358063,181.04,180.97,5.5257]
[1722003989886,15.29358063,181.04,180.99,5.5249]
[1722003990071,15.29358063,181.04,180.98,14.91787567]
[1722003990382,15.29358063,181.04,180.98,30.4432]
[1722003990588,15.29358063,181.04,181.0,5.5248]
[1722003990762,15.29358063,181.04,180.99,5.5251]
[1722003990967,15.29358063,181.04,181.0,5.5248]
[1722003991282,15.29358063,181.04,180.99,6.6297178]
[1722003991769,15.29358063,181.04,181.0,22.1548]
[1722003991958,15.29358063,181.04,181.02,22.1542]
[1722003992367,17.08497664,181.16,181.03,30.4391]
[1722003992591,15.52860766,181.15,181.04,1.1040887]
[1722003992896,15.52860766,181.15,181.06,5.5229]
[1722003993204,15.52860766,181.15,181.07,1.10407161]
[1722003993359,15.52860766,181.15,181.08,1.10402007]
[1722003993568,15.52860766,181.15,181.07,17.73399258]
[1722003993791,15.52860766,181.15,181.08,1.10401101]
[1722003993965,15.52860766,181.15,181.05,16.63]
[1722003994169,15.52860766,181.15,181.03,1.10407309]
[1722003994464,15.52860766,181.15,181.04,13.8089]
[1722003994784,15.52860766,181.15,181.06,5.523]
[1722003994966,15.52860766,181.15,181.07,1.10407618]
[1722003995365,15.52860766,181.15,181.08,1.10407778]
[1722003995865,15.52860766,181.15,181.09,1.10406644]
[1722003996595,15.52860766,181.15,181.04,1.10397786]
[1722003996787,15.52860766,181.15,181.05,1.10414656]
[1722003997173,15.52860766,181.15,181.06,13.8074]
[1722003997374,15.52860766,181.15,181.06,1.10413815]
[1722003997576,1.09776947,181.24,181.09,35.9572]
[1722003997797,11.9904,181.25,181.1,1.10385134]
[1722003997798,32.36750752,181.25,181.1,1.10385134]
[1722003998100,16.57490042,181.24,181.11,0.55041899]
[1722003998291,5.5195,181.18,181.02,5.5239]
[1722003998498,5.519,181.2,181.03,6.62807057]
[1722003998692,11.33964225,181.21,181.07,5.5227]
[1722003998894,1.37997451,181.22,181.08,1.1039796]
[1722003999084,25.89640017,181.24,181.08,1.1039796]
[1722003999405,9.96015391,181.23,181.1,5.5216]
[1722003999604,9.96015391,181.23,181.09,13.8051]
[1722003999605,9.96015391,181.23,181.11,1.10373613]
[1722004000111,5.5188,181.2,181.06,29.7]
[1722004000281,1.38021015,181.19,181.06,29.7]
[1722004000484,1.38021015,181.19,181.05,1.10416812]
[1722004000802,16.9763833,181.22,181.07,5.5227]
[1722004001107,16.9763833,181.22,181.08,6.6262996]
[1722004001108,9.96015391,181.21,181.08,6.6262996]
[1722004001477,25.89640017,181.21,181.08,6.6262996]
[1722004001787,21.37181119,181.23,181.08,1.1039996]
[1722004001991,17.13075823,181.22,181.08,6.6262996]
[1722004002213,9.95981242,181.21,181.08,6.6262996]
[1722004002384,27.27540467,181.21,181.08,1.1039996]
[1722004002578,9.95981242,181.2,181.08,1.1039996]
[1722004003085,1.37989237,181.21,181.08,1.1039996]
[1722004003292,1.37996766,181.2,181.04,1.10397413]
[1722004003605,1.37996766,181.2,181.05,6.62748879]
[1722004003779,9.95959471,181.2,181.05,14.91228879]
[1722004004487,9.95959471,181.2,181.07,5.5226]
[1722004004694,9.95959471,181.2,181.08,1.1039788]
[1722004005280,15.75079693,181.22,181.08,1.1039788]
[1722004005598,15.75079693,181.22,181.09,13.8045]
[1722004005782,15.75079693,181.22,181.1,1.10381756]
[1722004006208,15.75079693,181.22,181.12,13.8028]
[1722004006406,15.75079693,181.22,181.1,35.2215]
[1722004006719,15.75079693,181.22,181.11,1.10376358]
[1722004006879,15.75079693,181.22,181.1,36.32526371]
[1722004007076,15.75079693,181.22,181.11,1.10381792]
[1722004008894,1.37977282,181.21,181.08,13.8053]
[1722004009089,15.75079693,181.22,181.14,16.63]
[1722004009305,15.75079693,181.22,181.15,1.10358899]
[1722004009502,15.75079693,181.22,181.14,13.8013]
[1722004009704,15.75079693,181.22,181.1,29.7]
[1722004009894,1.37992223,181.21,181.07,5.5225]
[1722004010222,15.75079693,181.22,181.08,23.25611799]
[1722004010381,1.37989547,181.21,181.08,1.10391637]
[1722004010717,1.3800024,181.2,181.07,1.10391637]
[1722004010887,1.3800024,181.2,181.07,6.62651637]
[1722004011089,1.3800024,181.2,181.07,1.10391637]
[1722004011293,1.3800024,181.2,181.06,29.7]
[1722004011294,1.3800024,181.2,181.03,1.10414572]
[1722004011506,5.5197,181.17,181.03,1.10414572]
[1722004011790,5.524,181.2,181.05,5.5232]
[1722004012096,5.524,181.2,181.06,1.10409961]
[1722004012301,5.524,181.2,181.06,6.62709961]
[1722004012501,15.29906473,181.21,181.07,5.5226]
[1722004012712,15.29906473,181.21,181.08,1.104]
[1722004013023,15.29906473,181.21,181.09,5.5219]
[1722004013196,15.29906473,181.21,181.1,17.73386332]
[1722004013513,15.29906473,181.21,181.11,1.10377091]
[1722004013717,15.29906473,181.21,181.12,5.5209]
[1722004014015,15.29906473,181.21,181.13,1.10370889]
[1722004015491,15.29906473,181.21,181.12,1.1037092]
[1722004016222,15.29906473,181.21,181.12,17.7337092]
[1722004016717,15.29906473,181.21,181.13,16.63]
[1722004016886,15.29906473,181.21,181.14,1.10365349]
[1722004017089,15.29906473,181.21,181.15,1.10361991]
[1722004017514,15.29906473,181.21,181.15,17.73362006]
[1722004017812,15.29906473,181.21,181.17,16.63]
[1722004018195,15.29906473,181.21,181.18,51.8492]
[1722004018401,7.73036502,181.32,181.18,46.33]
[1722004018592,13.24556502,181.32,181.19,1.10328457]
[1722004018793,7.73036502,181.32,181.19,1.10328457]
[1722004019515,7.73036502,181.32,181.18,30.80328297]
[1722004019816,7.73036502,181.32,181.19,1.1035162]
[1722004019817,9.95522395,181.31,181.19,1.1035162]
[1722004020000,9.95522395,181.31,181.19,6.6224162]
[1722004020201,15.92816334,181.33,181.2,5.5185]
[1722004020411,1.37900401,181.32,181.19,1.10320321]
[1722004020723,5.5154,181.31,181.15,22.15]
[1722004020890,1.37935572,181.3,181.12,1.10348457]
[1722004021093,1.37952373,181.29,181.12,1.10348457]
[1722004021324,5.5167,181.27,181.12,1.10348457]
[1722004021622,1.37951494,181.26,181.12,1.10348457]
[1722004021806,32.79872568,181.3,181.13,5.5208]
[1722004022128,27.26751983,181.29,181.14,6.62414246]
[1722004022421,17.30966684,181.29,181.15,1.10364234]
[1722004022621,15.93011377,181.29,181.15,1.10364234]
[1722004022793,15.48899148,181.3,181.15,6.62354234]
[1722004022989,16.85233696,181.29,181.14,14.90429582]
[1722004023194,5.5166,181.27,181.13,17.73361946]
[1722004023397,1.37955285,181.26,181.13,1.10361946]
[1722004023611,6.89645285,181.26,181.13,1.10361946]
[1722004024222,1.37955285,181.26,181.12,6.62468052]
[1722004024416,1.37955285,181.26,181.13,5.5208]
[1722004024602,1.37955285,181.26,181.12,6.62478052]
[1722004024921,17.31087743,181.29,181.14,5.5205]
[1722004025100,9.95691312,181.28,181.15,1.10363404]
[1722004025429,15.89455311,181.27,181.15,1.10363404]
[1722004025605,9.95691312,181.26,181.15,1.10363404]
[1722004025803,15.53316499,181.25,181.15,23.25383404]
[1722004026417,15.53316499,181.25,181.18,51.849]
[1722004026725,15.53316499,181.25,181.19,1.10339152]
[1722004026908,15.53316499,181.25,181.2,13.7966]
[1722004027112,15.53316499,181.25,181.2,19.3152]
[1722004027319,15.53316499,181.25,181.18,35.2191]
[1722004027618,15.53316499,181.25,181.19,13.7969]
[1722004028039,15.53316499,181.25,181.19,19.3158]
[1722004028204,15.53316499,181.25,181.2,5.5187]
[1722004029097,15.53316499,181.25,181.23,16.63]
[1722004029291,15.53316499,181.25,181.24,5.5175]
[1722004029512,17.17866046,181.38,181.26,16.63]
[1722004029822,9.95068331,181.37,181.27,1.1028009]
[1722004030025,25.87142513,181.37,181.27,23.2493009]
[1722004030203,9.95054813,181.36,181.28,5.5162]
[1722004030399,9.95054813,181.35,181.29,1.10274547]
[1722004030617,9.95054813,181.37,181.3,1.10272204]
[1722004030803,15.79964279,181.38,181.3,1.10272204]
[1722004031120,9.94773,181.37,181.24,7.58716024]
[1722004031325,9.94773,181.37,181.25,5.5172]
[1722004031629,9.94773,181.37,181.26,1.10278183]
[1722004031836,9.94773,181.37,181.24,20.2777]
[1722004032118,9.94773,181.37,181.26,5.5168]
[1722004032321,9.94773,181.37,181.27,1.10280192]
[1722004032517,9.94773,181.37,181.27,6.61940192]
[1722004032704,9.94773,181.37,181.28,5.5162]
[1722004032915,15.79964279,181.38,181.28,17.73267629]
[1722004033100,9.9485082,181.37,181.28,17.73267629]
[1722004033422,9.9485082,181.37,181.27,29.7]
[1722004033630,17.17817445,181.38,181.27,29.7]
[1722004033819,9.94890468,181.37,181.27,36.31932443]
[1722004033998,9.94890468,181.37,181.27,30.80282443]
[1722004034328,9.94890468,181.37,181.31,5.5153]
[1722004034506,15.79964279,181.38,181.31,5.5153]
[1722004034696,15.79964279,181.38,181.31,6.61789075]
[1722004035414,15.79964279,181.38,181.32,5.515]
[1722004035609,15.79964279,181.38,181.33,17.7325668]
[1722004035925,6.6154,181.5,181.37,16.63]
[1722004036126,6.6154,181.5,181.38,19.2964]
[1722004036434,9.94407086,181.49,181.36,1.10215874]
[1722004036904,9.94407086,181.49,181.36,6.61575874]
[1722004037110,9.94407086,181.49,181.43,16.63]
[1722004037323,0.8154141,181.58,181.48,30.4056]
[1722004037525,0.8154141,181.58,181.47,29.7]
[1722004037699,0.8154141,181.58,181.48,1.10162326]
[1722004037901,0.8154141,181.58,181.45,1.10162188]
[1722004038099,0.8154141,181.58,181.37,6.6151694]
[1722004038304,0.8154141,181.58,181.26,29.7]
[1722004038305,5.5106,181.47,181.35,16.6492]
[1722004038604,21.1908,181.57,181.32,1.10235435]
[1722004038605,5.524,181.5,181.32,1.10235435]
[1722004038799,1.37822472,181.49,181.32,1.10257978]
[1722004039007,5.5116,181.44,181.33,1.10249655]
[1722004039230,5.5111,181.46,181.31,1.10249655]
[1722004039411,1.37812069,181.48,181.31,6.61779655]
[1722004039622,1.37812069,181.48,181.32,5.515]
[1722004039813,1.37812069,181.48,181.33,1.10253329]
[1722004040031,5.5108,181.46,181.32,1.10253329]
[1722004040309,6.90216135,181.5,181.33,6.61722908]
[1722004040512,5.524,181.5,181.33,31.51912908]
[1722004040721,6.90199179,181.54,181.36,30.4141]
[1722004041022,5.509,181.52,181.37,1.10220093]
[1722004041335,5.524,181.54,181.38,22.1431]
[1722004041643,5.524,181.54,181.39,1.10206603]
[1722004041930,11.0324,181.54,181.4,1.10206681]
[1722004042336,5.524,181.54,181.4,1.10206681]
[1722004042546,5.524,181.54,181.41,5.5123]
[1722004042702,5.524,181.54,181.42,1.1020128]
[1722004042904,5.524,181.54,181.43,1.1020128]
[1722004043329,6.88538408,181.56,181.4,6.6146128]
[1722004043330,5.524,181.55,181.4,6.6146128]
[1722004043832,5.524,181.55,181.4,1.1020128]
[1722004044139,11.0321,181.55,181.4,1.1020128]
[1722004044434,11.0321,181.55,181.4,6.6146128]
[1722004044933,11.0321,181.55,181.36,16.63]
[1722004044934,1.37747881,181.54,181.36,16.63]
[1722004045124,5.524,181.53,181.36,17.73216461]
[1722004045439,5.5096,181.5,181.36,17.73224612]
[1722004045611,1.37782982,181.49,181.36,17.73224612]
[1722004046820,5.513,181.39,181.23,5.5178]
[1722004047010,1.37868035,181.38,181.17,51.8376]
[1722004047205,13.7809,181.41,181.2,13.7967]
[1722004047443,5.5135,181.38,181.21,1.10302499]
[1722004047611,5.5129,181.39,181.23,5.5176]
[1722004047941,1.37861503,181.39,181.24,17.73289202]
[1722004048115,5.5133,181.38,181.24,17.73289202]
[1722004048315,6.89161503,181.39,181.24,17.73289202]
[1722004048634,5.5133,181.38,181.24,17.73289202]
[1722004048834,5.5133,181.38,181.24,1.10289202]
[1722004049011,5.525,181.42,181.2,1.10312193]
[1722004049012,1.37873754,181.37,181.2,1.10312193]
[1722004049209,6.90373754,181.37,181.19,14.9003539]
[1722004049409,6.90373754,181.37,181.17,22.1376]
[1722004049410,5.5148,181.33,181.18,1.10325343]
[1722004049637,1.37917434,181.32,181.18,6.62255343]
[1722004050128,1.37917252,181.37,181.18,17.73325343]
[1722004050303,12.41777252,181.37,181.21,13.7961]
[1722004050510,12.41777252,181.37,181.21,14.89931566]
[1722004050943,5.5138,181.36,181.21,14.89931566]
[1722004051139,1.37902163,181.35,181.21,14.89931566]
[1722004052138,5.525,181.37,181.23,5.5177]
[1722004052310,6.90383465,181.39,181.24,6.62046772]
[1722004052513,5.525,181.39,181.24,1.10306772]
[1722004052713,5.525,181.37,181.24,1.10306772]
[1722004053021,1.37874635,181.36,181.2,1.10299708]
[1722004053213,1.37889521,181.35,181.21,1.10311617]
[1722004053417,1.37889521,181.35,181.21,6.62151617]
[1722004054239,1.37889521,181.35,181.21,1.10311617]
[1722004054412,1.37889521,181.35,181.21,6.62151617]
[1722004054734,5.525,181.37,181.21,31.52851617]
[1722004054931,1.37877744,181.36,181.21,14.89851617]
[1722004055125,6.90397059,181.37,181.22,5.5178]
[1722004055444,6.90397059,181.37,181.22,5.518]
[1722004055445,1.37897059,181.35,181.22,5.518]
[1722004055658,6.90399944,181.37,181.23,5.5178]
[1722004055836,6.90385675,181.41,181.24,1.1030854]
[1722004056166,1.37866429,181.4,181.26,19.3085]
[1722004056444,1.37859625,181.39,181.26,20.411377]
[1722004056645,1.37859625,181.39,181.26,14.894777]
[1722004056822,1.37859625,181.39,181.25,5.5172]
[1722004057030,1.37859625,181.39,181.23,13.7944]
[1722004057409,1.37859625,181.39,181.22,17.73295779]
[1722004057410,5.5141,181.36,181.22,1.10295779]
[1722004057611,6.89227897,181.38,181.21,17.73318318]
[1722004057914,6.90387629,181.41,181.25,13.793]
[1722004058238,6.90387629,181.41,181.26,17.73292683]
[1722004058450,1.37887629,181.41,181.29,5.516]
[1722004058748,15.03328836,181.42,181.29,1.10281014]
[1722004058914,15.03328836,181.42,181.3,6.61841014]
[1722004059234,15.03328836,181.42,181.28,1.10275103]
[1722004059433,6.89083879,181.41,181.27,1.10278207]
[1722004059812,6.89083879,181.41,181.26,1.10286011]
[1722004060045,1.37843879,181.41,181.24,19.3112]
[1722004060246,1.37843879,181.41,181.24,14.89675333]
[1722004060565,5.513,181.39,181.24,14.89675333]
[1722004060718,1.37872909,181.38,181.22,6.62078327]
[1722004060919,5.5135,181.37,181.21,5.5182]
[1722004061222,1.37897978,181.36,181.21,1.10318382]
[1722004061417,5.5135,181.37,181.21,6.62148382]
[1722004061418,1.37897799,181.35,181.21,6.62148382]
[1722004061638,1.37897799,181.35,181.21,1.10318382]
[1722004061849,7.42677799,181.35,181.17,35.9367]
[1722004062017,37.12677799,181.35,181.13,43.5016]
[1722004062220,5.5152,181.32,181.16,5.5198]
[1722004062417,1.37938654,181.31,181.15,14.90350923]
[1722004062620,1.3794041,181.34,181.16,16.63]
[1722004062814,1.3794041,181.34,181.21,5.5183]
[1722004063017,6.0478,181.35,181.22,6.62117173]
[1722004063319,1.37898107,181.34,181.19,13.7971]
[1722004063824,1.37898107,181.34,181.19,19.316]
[1722004064658,1.37898107,181.34,181.2,1.10332505]
[1722004064854,11.5728,181.35,181.21,1.1031918]
[1722004065156,6.0478,181.35,181.22,13.7951]
[1722004065331,1.37885778,181.34,181.22,19.3129]
[1722004065530,6.0478,181.35,181.22,19.3129]
[1722004065853,1.37891018,181.38,181.26,5.5169]
[1722004066156,1.37891018,181.38,181.25,13.7924]
[1722004066668,6.1619,181.41,181.28,5.5163]
[1722004066834,1.37856519,181.4,181.28,5.5163]
[1722004067033,1.37858623,181.39,181.25,30.4224]
[1722004067257,1.37858623,181.39,181.23,1.10289575]
[1722004067533,1.37858623,181.39,181.22,1.10310804]
[1722004068083,1.37858623,181.39,181.18,1.10310838]
[1722004068253,5.5143,181.35,181.18,6.62230838]
[1722004068566,1.37909749,181.34,181.19,5.519]
[1722004068762,1.37909749,181.34,181.13,44.60500366]
[1722004069268,5.5152,181.32,181.16,13.7997]
[1722004069563,15.92319716,181.36,181.19,30.4273]
[1722004069859,6.89232559,181.38,181.21,5.5182]
[1722004070164,1.37902559,181.38,181.23,5.5177]
[1722004070332,17.30082732,181.38,181.22,19.3132]
[1722004070533,1.37902559,181.38,181.23,5.5178]
[1722004070734,1.37902559,181.38,181.24,5.5175]
[1722004071134,1.37902559,181.38,181.22,13.7952]
[1722004071353,1.37902559,181.38,181.24,5.5174]
[1722004071960,5.5136,181.37,181.22,13.7952]
[1722004072141,1.37893991,181.36,181.22,13.7952]
[1722004072350,1.37892324,181.35,181.22,13.7952]
[1722004072663,1.37892324,181.35,181.21,1.10313859]
[1722004072962,1.37892324,181.35,181.21,1.10320908]
[1722004073339,1.37900911,181.34,181.21,1.10320908]
[1722004073546,1.37900911,181.34,181.21,5.5183]
[1722004073744,1.37900911,181.34,181.19,19.3165]
[1722004073933,6.89350911,181.34,181.19,13.7975]
[1722004074134,1.37900911,181.34,181.19,13.7975]
[1722004074352,1.37900911,181.34,181.2,5.5185]
[1722004074553,1.37900911,181.34,181.21,5.5184]
[1722004074750,15.9219656,181.36,181.22,13.7948]
[1722004075038,1.37907675,181.38,181.24,5.5174]
[1722004075334,5.5137,181.37,181.22,13.7948]
[1722004075536,6.8930031,181.36,181.2,6.62182353]
[1722004075730,6.8930031,181.36,181.18,13.7977]